fUSD/lending_fUSD_20260429
["ID","MTS","AMOUNT","RATE_DAILY","PERIOD"]
[421307933,1777401065702,-7500.02,0.00042542,120]
[421307934,1777401065759,-500.0,0.00042542,120]
[421307935,1777401065817,-1542.91830938,0.00042542,120]
[421307936,1777401065874,-7500.02,0.00042542,120]
[421307937,1777401065932,-511.7534224,0.00042542,120]
[421307938,1777401065988,-7500.02,0.00042542,120]
[421307939,1777401066044,-7500.02,0.00042542,120]
[421307940,1777401066099,-7500.02,0.00042542,120]
[421307941,1777401066155,-500.0,0.00042542,120]
[421307942,1777401066214,-194.24906696,0.00042542,120]
[421307943,1777401066271,-7500.02,0.00042542,120]
[421307944,1777401066330,-450.7323205,0.00042542,120]
[421307945,1777401066383,-500.0,0.00042542,120]
[421307946,1777401066436,-7500.02,0.00042542,120]
[421307947,1777401066492,-458.19311742,0.00042542,120]
[421307948,1777401066547,-7500.02,0.00042542,120]
[421307949,1777401066607,-7500.25337858,0.00042542,120]
[421307950,1777401066668,-625.63940724,0.00042542,120]
[421307951,1777401066724,-404.95621814,0.00042542,120]
[421307952,1777401066782,-500.0,0.00042542,120]
[421307953,1777401066837,-500.0,0.00042542,120]
[421307954,1777401066894,-285.05,0.00042542,30]
[421307955,1777401066949,-500.0,0.00042542,120]
[421307956,1777401067003,-570.49,0.00042542,30]
[421307957,1777401067058,-500.0,0.00042542,120]
[421307958,1777401067114,-173.91303828,0.00042542,120]
[421307959,1777401067171,-500.0,0.00042542,120]
[421307960,1777401067226,-500.0,0.00042542,120]
[421307961,1777401067281,-500.0,0.00042542,120]
[421307962,1777401067337,-500.0,0.00042542,120]
[421307963,1777401067391,-339.36216353,0.00042542,120]
[421307964,1777401067447,-500.0,0.00042542,120]
[421307965,1777401067504,-500.0,0.00042542,120]
[421307966,1777401067562,-416.08967152,0.00042542,120]
[421307967,1777401067621,-153.07797135,0.00042542,120]
[421307968,1777401067678,-500.0,0.00042542,120]
[421307969,1777401067734,-500.0,0.00042542,120]
[421307970,1777401067791,-166.0184295,0.00042542,120]
[421307971,1777401067848,-432.77070478,0.00042542,120]
[421307972,1777401067905,-170.43285361,0.00042542,120]
[421307973,1777401067960,-500.0,0.00042542,120]
[421307974,1777401068020,-500.0,0.00042542,120]
[421307975,1777401068076,-500.0,0.00042542,120]
[421307976,1777401068131,-500.0,0.00042542,120]
[421307977,1777401068187,-305.36219279,0.00042542,120]
[421307978,1777401068244,-500.0,0.00042542,120]
[421307979,1777401068301,-500.0,0.00042542,120]
[421307980,1777401068361,-500.0,0.00042542,120]
[421307981,1777401068418,-620.81540022,0.00042542,120]
[421307982,1777401068480,-500.0,0.00042542,120]
[421307983,1777401068537,-500.0,0.00042542,120]
[421307984,1777401068591,-500.0,0.00042542,120]
[421307985,1777401068646,-500.0,0.00042542,120]
[421307986,1777401068699,-177.27598281,0.00042542,120]
[421307987,1777401068752,-500.0,0.00042542,120]
[421307988,1777401068805,-321.89756764,0.00042542,120]
[421307989,1777401068858,-59999.99,0.00042542,30]
[421307990,1777401068912,-173.09029682,0.00042542,120]
[421307991,1777401068965,-50653.88,0.00042542,30]
[421307992,1777401069023,-506.92980733,0.00042542,120]
[421307993,1777401069080,-500.0,0.00042542,120]
[421307994,1777401069133,-242.79952296,0.00042542,120]
[421307995,1777401069186,-500.0,0.00042542,120]
[421307996,1777401069241,-500.0,0.00042542,120]
[421307997,1777401069295,-500.0,0.00042542,120]
[421307998,1777401069349,-500.0,0.00042542,120]
[421307999,1777401069421,-229.39859659,0.00042542,120]
[421308000,1777401069482,-500.0,0.00042542,120]
[421308001,1777401069540,-296.99395797,0.00042542,120]
[421308002,1777401069597,-7388.16,0.00042542,60]
[421308003,1777401069653,-195.49143055,0.00042542,120]
[421308004,1777401069709,-8227.81,0.00042542,60]
[421308005,1777401069763,-500.0,0.00042542,120]
[421308006,1777401069818,-500.0,0.00042542,120]
[421308007,1777401069870,-500.0,0.00042542,120]
[421308008,1777401069924,-625.3105029,0.00042542,120]
[421308009,1777401069979,-500.0,0.00042542,120]
[421308010,1777401070033,-500.0,0.00042542,120]
[421308011,1777401070086,-500.0,0.00042542,120]
[421308012,1777401070139,-500.0,0.00042542,120]
[421308013,1777401070194,-262.73658767,0.00042542,120]
[421308014,1777401070247,-465.99546013,0.00042542,120]
[421308015,1777401070301,-563.69282795,0.00042542,120]
[421308016,1777401070355,-504.04005425,0.00042542,120]
[421308017,1777401070408,-547.37242825,0.00042542,120]
[421308018,1777401070462,-501.41694541,0.00042542,30]
[421308019,1777401070516,-500.0,0.00042542,120]
[421308020,1777401070571,-500.0,0.00042542,120]
[421308021,1777401071125,-190.79474719,0.00042542,120]
[421308022,1777401071197,-1203.92,0.00042542,120]
[421308023,1777401071248,-1203.92,0.00042542,120]
[421308024,1777401071304,-1203.92,0.00042542,120]
[421308025,1777401071356,-1203.92,0.00042542,120]
[421308026,1777401071406,-1203.92,0.00042542,120]
[421308027,1777401071456,-2000.0,0.00042542,30]
[421308028,1777401071514,-500.0,0.00042542,120]
[421308029,1777401071567,-1203.92,0.00042542,120]
[421308030,1777401071620,-548.82624375,0.00042542,120]
[421308031,1777401071672,-1203.92,0.00042542,120]
[421308032,1777401071723,-2000.0,0.00042542,30]
[421308033,1777401071774,-1203.92,0.00042542,120]
[421308034,1777401071826,-1203.92,0.00042542,120]
[421308035,1777401071874,-2000.0,0.00042542,30]
[421308036,1777401071924,-1203.92,0.00042542,120]
[421308037,1777401071974,-186.19140762,0.00042542,120]
[421308038,1777401072023,-338.3270389,0.00042542,120]
[421308039,1777401072072,-500.0,0.00042542,120]
[421308040,1777401072121,-500.0,0.00042542,120]
[421308041,1777401072171,-2000.0,0.00042542,30]
[421308042,1777401072223,-1203.92,0.00042542,120]
[421308043,1777401072274,-535.66210181,0.00042542,120]
[421308044,1777401072322,-2000.0,0.00042542,30]
[421308045,1777401072371,-1203.92,0.00042542,120]
[421308046,1777401072420,-1203.92,0.00042542,120]
[421308047,1777401072473,-1203.92,0.00042542,120]
[421308048,1777401072527,-2000.0,0.00042542,30]
[421308049,1777401072580,-1203.92,0.00042542,120]
[421308050,1777401073249,1203.92,0.00042543,120]
[421308051,1777401073314,2000.0,0.00042543,30]
[421308052,1777401073370,1203.92,0.00042543,120]
[421308053,1777401073454,1203.92,0.00042543,120]
[421308054,1777401073517,2000.0,0.00042543,30]
[421308055,1777401073584,1203.92,0.00042543,120]
[421308056,1777401073652,1203.92,0.00042543,120]
[421308057,1777401073711,1637.20039089,0.00042543,30]
[421308058,1777401073770,1203.92,0.00042543,120]
[421308059,1777401073873,1203.92,0.00042543,120]
[421308060,1777401073964,1203.92,0.00042543,120]
[421308061,1777401074035,1204.01358659,0.00042543,120]
[421308062,1777401074229,419.84,0.00042543,120]
[421308063,1777401074291,473.92,0.00042543,120]
[421308064,1777401078462,-280.0,8.219e-05,2]
[421308065,1777401078474,-250.0,8.486e-05,2]
[421308066,1777401078485,-2923.912,8.753e-05,2]
[421308067,1777401078496,-215.083,8.753e-05,2]
[421308068,1777401078507,-300.0,8.829e-05,2]
[421308069,1777401078517,-300.0,8.83e-05,2]
[421308070,1777401078528,-1200.0,8.83e-05,2]
[421308071,1777401078538,-463.8101,8.831e-05,2]
[421308072,1777401078547,-1488.1061,8.831e-05,2]
[421308073,1777401078558,-150.0,8.929e-05,2]
[421308074,1777401078568,-1469.7316,9.032e-05,2]
[421308075,1777401078578,-250.0,9.041e-05,2]
[421308076,1777401078589,-420.0,9.713e-05,2]
[421308077,1777401078598,-548.0,9.713e-05,2]
[421308078,1777401078608,-173.0,9.979e-05,2]
[421308079,1777401078619,-200.0,0.0001,2]
[421308080,1777401078628,-236.24581602,0.0001,2]
[421308081,1777401078638,-151.0,0.0001,2]
[421308082,1777401078648,-700.0,0.00010029,2]
[421308083,1777401078658,-200.0,0.00010548,2]
[421308084,1777401078668,-151.0,0.00010548,2]
[421308085,1777401078678,-587.0,0.00010685,2]
[421308086,1777401078689,-500.0,0.00010795,2]
[421308087,1777401078699,-500.0,0.00010959,2]
[421308088,1777401078949,-505.72,0.00010959,2]
[421308089,1777401078980,-200.0,0.00011096,2]
[421308090,1777401078990,-155.15097764,0.00011096,2]
[421308091,1777401079000,-2702.04347756,0.00011099,2]
[421308092,1777401079009,-2702.04347753,0.00011099,2]
[421308093,1777401079019,-2702.04347753,0.00011099,2]
[421308094,1777401079029,-4320.89438089,0.00011099,2]
[421308095,1777401079037,-4320.89438086,0.00011099,2]
[421308096,1777401079047,-4320.89438086,0.00011099,2]
[421308097,1777401079058,-151.0,0.00011165,2]
[421308098,1777401079067,-725.45219915,0.00011165,2]
[421308099,1777401079076,-209.40437684,0.00011165,2]
[421308100,1777401079087,-174.61919141,0.00011165,2]
[421308101,1777401079097,-279.9045709,0.00011165,2]
[421308102,1777401079107,-235.75327194,0.00011165,2]
[421308103,1777401079117,-244.476143,0.00011165,2]
[421308104,1777401079128,-253.52176029,0.00011165,2]
[421308105,1777401079138,-262.90206542,0.00011165,2]
[421308106,1777401079147,-272.62944185,0.00011165,2]
[421308107,1777401079157,-282.71673119,0.00011165,2]
[421308108,1777401079167,-379.0973939,0.00011165,2]
[421308109,1777401079177,-209.40437684,0.00011165,2]
[421308110,1777401079187,-1157.22138104,0.00011219,3]
[421308111,1777401079196,-1266.0,0.00011241,2]
[421308112,1777401079205,-927.0,0.00011241,2]
[421308113,1777401079215,-3532.0,0.00011241,2]
[421308114,1777401079225,-6717.18,0.00011281,2]
[421308115,1777401079235,-200.0,0.000113,2]
[421308116,1777401079245,-2003.0,0.000114,2]
[421308117,1777401079255,-200.0,0.00011644,2]
[421308118,1777401079264,-217.15233878,0.00011713,2]
[421308119,1777401079274,-181.08010149,0.00011713,2]
[421308120,1777401079284,-290.26104003,0.00011713,2]
[421308121,1777401079294,-217.15233878,0.00011713,2]
[421308122,1777401079303,-823.0,0.00011753,2]
[421308123,1777401079313,-5000.0,0.00011894,2]
[421308124,1777401079322,-928.85487366,0.00011894,2]
[421308125,1777401079331,-183.52004862,0.000119,2]
[421308126,1777401079341,-200.0,0.00011904,2]
[421308127,1777401079351,-4320.89438086,0.0001192,2]
[421308128,1777401079360,-250.0,0.00011929,2]
[421308129,1777401079371,-500.0,0.00011973,2]
[421308130,1777401079381,-500.53133547,0.00011973,2]
[421308131,1777401079390,-369.4,0.00011988,2]
[421308132,1777401079400,-411.39,0.00011988,2]
[421308133,1777401079409,-171184.3395196,0.00011994,2]
[421308134,1777401079419,-3132.4619187,0.00011994,2]
[421308135,1777401079429,-2812.2976457,0.00011994,2]
[421308136,1777401079438,-3025.2083747,0.00011994,2]
[421308137,1777401079448,-4913.5623546,0.00011994,2]
[421308138,1777401079458,-20507.3857557,0.00011994,2]
[421308139,1777401079467,-2702.04347753,0.00011997,2]
[421308140,1777401079478,-1000.0,0.00011999,2]
[421308141,1777401079488,-1000.0,0.00011999,2]
[421308142,1777401079497,-1000.0,0.00011999,2]
[421308143,1777401079507,-535.03256859,0.00011999,2]
[421308144,1777401079517,-474.0,0.00012,5]
[421308145,1777401079526,-453.0,0.00012,5]
[421308146,1777401079536,-250.0,0.00012,2]
[421308147,1777401079545,-116123.8981576,0.00012,2]
[421308148,1777401079557,-8489.51486233,0.00012,2]
[421308149,1777401079568,-4575.02556021,0.00012,2]
[421308150,1777401080098,-1383.10001,0.00012,2]
[421308151,1777401080122,-1971.275,0.00012,2]
[421308152,1777401080134,-2137.9822266,0.00012,2]
[421308153,1777401080405,-0.71600811,0.00011241,2]
[421308154,1777401080417,-922.28399189,0.00011241,2]
[421308155,1777401080427,-18821.5427304,0.00012,2]
[421308156,1777401080438,-1041.20961511,0.00012,2]
[421308157,1777401340258,-505.7354278,0.00042543,120]
[421308158,1777401340308,-3046786.8788,0.00042543,30]
[421308159,1777401340358,-500.0,0.00042543,120]
[421308160,1777401340408,-500.0,0.00042543,120]
[421308161,1777401340457,-500.0,0.00042543,120]
[421308162,1777401340506,-500.0,0.00042543,120]
[421308163,1777401340556,-443.90478925,0.00042543,120]
[421308164,1777401340605,-3761.27,0.00042543,120]
[421308165,1777401340654,-3761.27,0.00042543,120]
[421308166,1777401340701,-3761.27,0.00042543,120]
[421308167,1777401340748,-3761.27,0.00042543,120]
[421308168,1777401340796,-3761.27,0.00042543,120]
[421308169,1777401340844,-3761.27,0.00042543,120]
[421308170,1777401340891,-3761.27,0.00042543,120]
[421308171,1777401340939,-3761.27,0.00042543,120]
[421308172,1777401340987,-3761.27,0.00042543,120]
[421308173,1777401341035,-3761.27,0.00042543,120]
[421308174,1777401341083,-3761.27,0.00042543,120]
[421308175,1777401341129,-3761.27,0.00042543,120]
[421308176,1777401341175,-3761.27,0.00042543,120]
[421308177,1777401341222,-3761.27,0.00042543,120]
[421308178,1777401341269,-3761.27,0.00042543,120]
[421308179,1777401341321,-50000.0,0.00042543,44]
[421308180,1777401341370,-3761.27,0.00042543,120]
[421308181,1777401341419,-3761.27,0.00042543,120]
[421308182,1777401341468,-3761.27,0.00042543,120]
[421308183,1777401341517,-3761.27,0.00042543,120]
[421308184,1777401341565,-3761.27,0.00042543,120]
[421308185,1777401341614,-3761.27,0.00042543,120]
[421308186,1777401341662,-3761.27,0.00042543,120]
[421308187,1777401341708,-3761.27,0.00042543,120]
[421308188,1777401341756,-3761.28957274,0.00042543,120]
[421308189,1777401342065,-449.8,0.00042543,120]
[421308190,1777401342116,-50000.0,0.00042543,45]
[421308191,1777401342165,-179.65564531,0.00042543,120]
[421308192,1777401342215,-50000.0,0.00042543,46]
[421308193,1777401342262,-500.0,0.00042543,120]
[421308194,1777401342310,-500.0,0.00042543,120]
[421308195,1777401342357,-500.0,0.00042543,120]
[421308196,1777401342404,-500.0,0.00042543,120]
[421308197,1777401342453,-271.32400205,0.00042543,120]
[421308198,1777401342503,-50000.0,0.00042543,47]
[421308199,1777401342550,-520.2485346,0.00042543,120]
[421308200,1777401342599,-528.13219328,0.00042543,120]
[421308201,1777401342648,-500.0,0.00042543,120]
[421308202,1777401342697,-254.07167324,0.00042543,120]
[421308203,1777401342745,-523.23174097,0.00042543,120]
[421308204,1777401342792,-500.0,0.00042543,120]
[421308205,1777401342839,-500.0,0.00042543,120]
[421308206,1777401342885,-240.39029736,0.00042543,120]
[421308207,1777401342932,-505.60809336,0.00042543,120]
[421308208,1777401342978,-507.60032349,0.00042543,120]
[421308209,1777401343026,-317.90785381,0.00042543,120]
[421308210,1777401343074,-522.0307626,0.00042543,120]
[421308211,1777401343120,-508.80846702,0.00042543,120]
[421308212,1777401343167,-2292.89,0.00042543,120]
[421308213,1777401343214,-2292.89,0.00042543,120]
[421308214,1777401343260,-2292.89,0.00042543,120]
[421308215,1777401343306,-2292.89,0.00042543,120]
[421308216,1777401343352,-2292.89,0.00042543,120]
[421308217,1777401343398,-567.83034504,0.00042543,120]
[421308218,1777401343444,-2292.89,0.00042543,120]
[421308219,1777401343491,-2292.89,0.00042543,120]
[421308220,1777401343537,-2292.89,0.00042543,120]
[421308221,1777401343585,-534.82707256,0.00042543,120]
[421308222,1777401343631,-2292.89,0.00042543,120]
[421308223,1777401343682,-534.82707256,0.00042543,120]
[421308224,1777401343729,-2292.89,0.00042543,120]
[421308225,1777401343776,-203.2338541,0.00042543,120]
[421308226,1777401343823,-2292.89,0.00042543,120]
[421308227,1777401343872,-534.82707255,0.00042543,120]
[421308228,1777401343919,-2292.89,0.00042543,120]
[421308229,1777401343968,-534.82707255,0.00042543,120]
[421308230,1777401344015,-2292.89,0.00042543,120]
[421308231,1777401344063,-534.82707255,0.00042543,120]
[421308232,1777401344110,-2292.89,0.00042543,120]
[421308233,1777401344159,-534.82707255,0.00042543,120]
[421308234,1777401344206,-2292.89,0.00042543,120]
[421308235,1777401344254,-534.82707255,0.00042543,120]
[421308236,1777401344302,-2292.89,0.00042543,120]
[421308237,1777401344351,-534.82707255,0.00042543,120]
[421308238,1777401344399,-2292.89,0.00042543,120]
[421308239,1777401344449,-2292.89,0.00042543,120]
[421308240,1777401344498,-534.82707255,0.00042543,120]
[421308241,1777401344547,-2292.89,0.00042543,120]
[421308242,1777401344597,-534.82707255,0.00042543,120]
[421308243,1777401344646,-2292.89,0.00042543,120]
[421308244,1777401344695,-534.82707255,0.00042543,120]
[421308245,1777401344742,-2292.89,0.00042543,120]
[421308246,1777401344789,-577.67846935,0.00042543,120]
[421308247,1777401344839,-2292.89,0.00042543,120]
[421308248,1777401344886,-2292.89,0.00042543,120]
[421308249,1777401344934,-2292.96777477,0.00042543,120]
[421308250,1777401344981,-500.0,0.00042543,120]
[421308251,1777401345030,-500.0,0.00042543,120]
[421308252,1777401345079,-500.0,0.00042543,120]
[421308253,1777401345127,-500.0,0.00042543,120]
[421308254,1777401345175,-500.0,0.00042543,120]
[421308255,1777401345224,-500.0,0.00042543,120]
[421308256,1777401345273,-190.22837152,0.00042543,120]
[421308257,1777401345321,-500.0,0.00042543,120]
[421308258,1777401345369,-500.0,0.00042543,120]
[421308259,1777401345417,-356.54503596,0.00042543,120]
[421308260,1777401345464,-500.0,0.00042543,120]
[421308261,1777401345514,-281.7528596,0.00042543,120]
[421308262,1777401345564,-500.0,0.00042543,120]
[421308263,1777401345614,-500.0,0.00042543,120]
[421308264,1777401345665,-500.0,0.00042543,120]
[421308265,1777401345716,-500.0,0.00042543,120]
[421308266,1777401345766,-500.0,0.00042543,120]
[421308267,1777401345815,-500.0,0.00042543,120]
[421308268,1777401345866,-500.0,0.00042543,120]
[421308269,1777401345914,-500.0,0.00042543,120]
[421308270,1777401345961,-500.0,0.00042543,120]
[421308271,1777401346011,-500.0,0.00042543,120]
[421308272,1777401346059,-184.68878651,0.00042543,120]
[421308273,1777401346107,-500.0,0.00042543,120]
[421308274,1777401346155,-500.0,0.00042543,120]
[421308275,1777401346205,-500.0,0.00042543,120]
[421308276,1777401346255,-500.0,0.00042543,120]
[421308277,1777401346306,-1004.27,0.00042543,120]
[421308278,1777401346354,-500.0,0.00042543,120]
[421308279,1777401346402,-500.0,0.00042543,120]
[421308280,1777401346450,-500.0,0.00042543,120]
[421308281,1777401346498,-500.0,0.00042543,120]
[421308282,1777401346546,-172.02220147,0.00042543,120]
[421308283,1777401346595,-500.0,0.00042543,120]
[421308284,1777401346644,-604.00459724,0.00042543,120]
[421308285,1777401346694,-500.0,0.00042543,120]
[421308286,1777401346742,-165.88646358,0.00042543,120]
[421308287,1777401346791,-172.15401475,0.00042543,120]
[421308288,1777401346840,-500.0,0.00042543,120]
[421308289,1777401346887,-521.74507189,0.00042543,120]
[421308290,1777401346934,-500.0,0.00042543,120]
[421308291,1777401346982,-569.57638477,0.00042543,120]
[421308292,1777401347030,-1117.0,0.00042543,30]
[421308293,1777401347253,-500.0,0.00042543,120]
[421308294,1777401347303,-500.0,0.00042543,120]
[421308295,1777401347353,-233.95848576,0.00042543,120]
[421308296,1777401347402,-500.0,0.00042543,120]
[421308297,1777401347451,-500.0,0.00042543,120]
[421308298,1777401347500,-500.0,0.00042543,120]
[421308299,1777401347550,-500.0,0.00042543,120]
[421308300,1777401347601,-500.0,0.00042543,120]
[421308301,1777401347650,-500.0,0.00042543,120]
[421308302,1777401347698,-500.0,0.00042543,120]
[421308303,1777401347745,-500.0,0.00042543,120]
[421308304,1777401347794,-503.38578592,0.00042543,120]
[421308305,1777401347842,-506.27113323,0.00042543,120]
[421308306,1777401347890,-189.45510116,0.00042543,120]
[421308307,1777401347937,-500.0,0.00042543,120]
[421308308,1777401347984,-500.0,0.00042543,120]
[421308309,1777401348032,-173.57803213,0.00042543,120]
[421308310,1777401348079,-500.0,0.00042543,120]
[421308311,1777401348126,-500.0,0.00042543,120]
[421308312,1777401348174,-532.44101674,0.00042543,120]
[421308313,1777401348222,-500.0,0.00042543,120]
[421308314,1777401348269,-500.0,0.00042543,120]
[421308315,1777401348317,-631.11757662,0.00042543,120]
[421308316,1777401348366,-500.0,0.00042543,120]
[421308317,1777401348415,-500.0,0.00042543,120]
[421308318,1777401348463,-627.89010189,0.00042543,120]
[421308319,1777401348511,-569.27925926,0.00042543,120]
[421308320,1777401348561,-500.0,0.00042543,120]
[421308321,1777401348611,-500.0,0.00042543,120]
[421308322,1777401348662,-500.0,0.00042543,120]
[421308323,1777401348716,-500.0,0.00042543,120]
[421308324,1777401348770,-500.0,0.00042543,120]
[421308325,1777401348823,-500.0,0.00042543,120]
[421308326,1777401348877,-500.0,0.00042543,120]
[421308327,1777401348931,-273.24942901,0.00042543,120]
[421308328,1777401348982,-500.0,0.00042543,120]
[421308329,1777401349035,-500.0,0.00042543,120]
[421308330,1777401349089,-173.73409394,0.00042543,120]
[421308331,1777401349141,-500.0,0.00042543,120]
[421308332,1777401349195,-507.3497848,0.00042543,120]
[421308333,1777401349248,-644.37675952,0.00042543,120]
[421308334,1777401349299,-526.97494264,0.00042543,120]
[421308335,1777401349350,-100000.0,0.00042543,30]
[421308336,1777401349402,-500.0,0.00042543,120]
[421308337,1777401349452,-500.0,0.00042543,120]
[421308338,1777401349501,-255.87502424,0.00042543,120]
[421308339,1777401349549,-500.0,0.00042543,120]
[421308340,1777401349598,-500.0,0.00042543,120]
[421308341,1777401349647,-500.0,0.00042543,120]
[421308342,1777401349697,-252.69817932,0.00042543,120]
[421308343,1777401349745,-500.0,0.00042543,120]
[421308344,1777401349793,-250.54092182,0.00042543,120]
[421308345,1777401349840,-500.0,0.00042543,120]
[421308346,1777401349885,-559.05242671,0.00042543,120]
[421308347,1777401349932,-504.67267054,0.00042543,120]
[421308348,1777401349979,-503.48169628,0.00042543,120]
[421308349,1777401350029,-506.03959039,0.00042543,120]
[421308350,1777401350077,-1974.81,0.00042543,120]
[421308351,1777401350125,-1974.81,0.00042543,120]
[421308352,1777401350173,-1974.81,0.00042543,120]
[421308353,1777401350221,-500.0,0.00042543,120]
[421308354,1777401350269,-1974.81,0.00042543,120]
[421308355,1777401350317,-564.19910039,0.00042543,120]
[421308356,1777401350364,-1974.81,0.00042543,120]
[421308357,1777401350414,-1974.81,0.00042543,120]
[421308358,1777401350464,-1974.81,0.00042543,120]
[421308359,1777401350512,-1974.81,0.00042543,120]
[421308360,1777401350561,-1974.81,0.00042543,120]
[421308361,1777401350610,-1974.81,0.00042543,120]
[421308362,1777401350657,-1974.81,0.00042543,120]
[421308363,1777401350704,-1974.81,0.00042543,120]
[421308364,1777401350753,-1974.81,0.00042543,120]
[421308365,1777401350801,-1974.81,0.00042543,120]
[421308366,1777401350850,-1974.81,0.00042543,120]
[421308367,1777401350898,-1974.81,0.00042543,120]
[421308368,1777401350947,-1974.81,0.00042543,120]
[421308369,1777401350995,-506.02995137,0.00042543,120]
[421308370,1777401351043,-1974.81,0.00042543,120]
[421308371,1777401351092,-1974.81,0.00042543,120]
[421308372,1777401351141,-1974.81,0.00042543,120]
[421308373,1777401351189,-1974.81,0.00042543,120]
[421308374,1777401351241,-1974.81,0.00042543,120]
[421308375,1777401351290,-1974.81,0.00042543,120]
[421308376,1777401351338,-1974.88357521,0.00042543,120]
[421308377,1777401351386,-150.0,0.00042543,120]
[421308378,1777401351435,-500.0,0.00042543,120]
[421308379,1777401351483,-263.14,0.00042543,120]
[421308380,1777401351531,-500.0,0.00042543,120]
[421308381,1777401351580,-500.0,0.00042543,120]
[421308382,1777401351629,-500.0,0.00042543,120]
[421308383,1777401351677,-529.76661974,0.00042543,120]
[421308384,1777401351723,-500.0,0.00042543,120]
[421308385,1777401351771,-500.0,0.00042543,120]
[421308386,1777401351817,-500.0,0.00042543,120]
[421308387,1777401351863,-500.0,0.00042543,120]
[421308388,1777401351908,-500.0,0.00042543,120]
[421308389,1777401351953,-208.75056734,0.00042543,120]
[421308390,1777401351998,-500.0,0.00042543,120]
[421308391,1777401352046,-511.94455051,0.00042543,120]
[421308392,1777401352094,-296.75564883,0.00042543,120]
[421308393,1777401352146,-500.0,0.00042543,120]
[421308394,1777401352197,-500.0,0.00042543,120]
[421308395,1777401352246,-500.0,0.00042543,120]
[421308396,1777401352458,-500.0,0.00042543,120]
[421308397,1777401352520,-195.78794876,0.00042543,120]
[421308398,1777401352572,-358.32160213,0.00042543,120]
[421308399,1777401352624,-503.51655307,0.00042543,120]
[421308400,1777401352674,-200.0,0.00042543,120]
[421308401,1777401352723,-151.0,0.00042543,120]
[421308402,1777401352772,-520.0,0.00042543,120]
[421308403,1777401352821,-200.0,0.00042543,120]
[421308404,1777401352869,-156.587,0.00042543,120]
[421308405,1777401352916,-500.0,0.00042543,120]
[421308406,1777401352964,-539.24,0.00042543,120]
[421308407,1777401353014,-50000.0,0.00042543,48]
[421308408,1777401353061,-200.0,0.00042543,120]
[421308409,1777401353109,-162.380719,0.00042543,120]
[421308410,1777401353156,-559.19188,0.00042543,120]
[421308411,1777401353205,-500.0,0.00042543,120]
[421308412,1777401353254,-500.0,0.00042543,120]
[421308413,1777401353307,-200.0,0.00042543,120]
[421308414,1777401353374,-168.3888056,0.00042543,120]
[421308415,1777401353436,-544.70335228,0.00042543,120]
[421308416,1777401353496,-579.88197956,0.00042543,120]
[421308417,1777401353555,-500.0,0.00042543,120]
[421308418,1777401353618,-174.61919141,0.00042543,120]
[421308419,1777401353679,-200.0,0.00042543,120]
[421308420,1777401353735,-151.0,0.00042543,120]
[421308421,1777401353787,-601.3376128,0.00042543,120]
[421308422,1777401353839,-500.0,0.00042543,120]
[421308423,1777401353891,-181.08010149,0.00042543,120]
[421308424,1777401353941,-545.89481049,0.00042543,120]
[421308425,1777401353991,-200.0,0.00042543,120]
[421308426,1777401354039,-160.0,0.00042543,120]
[421308427,1777401354092,-151.0,0.00042543,120]
[421308428,1777401354146,-500.0,0.00042543,120]
[421308429,1777401354199,-623.58710448,0.00042543,120]
[421308430,1777401354251,-187.78006525,0.00042543,120]
[421308431,1777401354303,-200.0,0.00042543,120]
[421308432,1777401354354,-160.0,0.00042543,120]